bitfinex/quotes_SOLUSD_20250902
["timestamp","ask_amount","ask_price","bid_price","bid_amount"]
[1756820107674,0.06,200.01,200.0,78.44266313]
[1756820107981,0.06,200.07,200.02,0.14216157]
[1756820108143,0.06,200.07,200.01,0.14216157]
[1756820108144,12.71274598,200.03,200.01,0.14216157]
[1756820108465,26.0,200.05,200.02,46.16]
[1756820108659,0.06,200.07,200.03,13.59559401]
[1756820108863,0.06,200.07,200.04,0.14216157]
[1756820108864,12.71274598,200.05,200.04,0.14216157]
[1756820109059,12.71274598,200.05,199.96,39.38274598]
[1756820109261,12.71274598,200.0,199.97,59.91775558]
[1756820109443,12.71274598,200.0,199.97,60.58775558]
[1756820109646,26.0,200.03,199.99,13.59559401]
[1756820109866,12.71274598,200.02,199.99,13.59559401]
[1756820110047,31.05845543,200.07,200.0,0.14216157]
[1756820110246,0.06,200.07,200.02,0.14216157]
[1756820110449,0.06,200.07,200.05,0.14216157]
[1756820110774,12.71274598,200.06,200.05,0.14216157]
[1756820111082,12.71274598,200.06,200.0,13.59559401]
[1756820111282,12.71274598,200.06,200.02,13.73775558]
[1756820111283,0.67,200.06,200.02,13.73775558]
[1756820111590,5.0582561,200.07,200.02,13.73775558]
[1756820111591,0.06,200.07,200.02,13.73775558]
[1756820112087,0.67,200.06,200.03,46.16]
[1756820112268,26.06,200.07,199.95,0.67]
[1756820112456,26.0,200.03,199.96,45.03559401]
[1756820112796,0.06,200.07,200.0,13.59559401]
[1756820112972,0.06,200.07,199.99,12.71274598]
[1756820112973,0.06,200.07,200.04,13.73775558]
[1756820113484,0.06,200.07,200.04,0.14216157]
[1756820113485,12.71274598,200.06,200.04,0.14216157]
[1756820113686,0.06,200.07,200.03,13.73775558]
[1756820113687,12.71274598,200.05,200.03,13.73775558]
[1756820113859,12.71274598,200.04,200.03,59.93775558]
[1756820114059,0.06,200.07,200.03,64.9369323]
[1756820114306,0.06,200.07,200.06,12.71274598]
[1756820114463,1e-08,200.07,200.06,39.44757068]
[1756820114834,12.71274598,200.23,200.14,14.02207872]
[1756820114973,1e-08,200.15,200.14,72.9748247]
[1756820115289,0.2,200.28,200.16,39.59559401]
[1756820115507,0.2,200.28,200.25,12.71274598]
[1756820115659,0.2,200.28,200.27,26.45050156]
[1756820115855,0.2,200.28,200.27,31.7280838]
[1756820116086,0.2,200.28,200.27,32.3980838]
[1756820116289,0.2,200.28,200.27,19.68533782]
[1756820116487,0.2,200.28,200.27,78.7580838]
[1756820117090,0.2,200.28,200.27,26.45050156]
[1756820117265,12.91274598,200.28,200.27,46.46216157]
[1756820117461,0.2,200.28,200.27,46.46216157]
[1756820117882,0.2,200.28,200.27,60.05775558]
[1756820118092,12.91274598,200.28,200.27,60.09775558]
[1756820118275,0.2,200.28,200.27,60.09775558]
[1756820119600,12.91274598,200.28,200.27,33.84]
[1756820119798,0.2,200.28,200.27,47.43559401]
[1756820120001,0.2,200.28,200.27,60.96050156]
[1756820120205,0.2,200.28,200.27,66.2380838]
[1756820120404,0.0579,200.28,200.27,66.2380838]
[1756820120708,0.67,200.46,200.33,39.59559401]
[1756820120879,0.67,200.5,200.4,13.59559401]
[1756820121073,12.71274598,200.43,200.34,0.28432314]
[1756820121278,12.71274598,200.41,200.35,46.26]
[1756820121478,0.67,200.51,200.41,13.73775558]
[1756820121706,37.44939674,200.58,200.42,46.28]
[1756820122009,12.71274598,200.43,200.41,46.28]
[1756820122329,12.71274598,200.42,200.41,46.28]
[1756820122477,12.71274598,200.42,200.38,0.14216157]
[1756820122679,12.71274598,200.39,200.27,0.67]
[1756820122875,12.71274598,200.38,200.28,46.91]
[1756820123078,26.0,200.45,200.3,0.14216157]
[1756820123318,26.0,200.41,200.34,13.73775558]
[1756820123486,26.0,200.41,200.35,46.24]
[1756820123687,26.0,200.41,200.36,13.73775558]
[1756820124018,0.67,200.5,200.42,0.14216157]
[1756820124178,4.98628799,200.55,200.45,0.14216157]
[1756820124378,12.71274598,200.5,200.45,0.14216157]
[1756820124606,0.67,200.49,200.44,13.59559401]
[1756820124813,26.0,200.52,200.45,46.24]
[1756820125105,26.0,200.52,200.42,0.14216157]
[1756820125106,0.67,200.48,200.42,46.22]
[1756820125281,0.67,200.48,200.43,13.73775558]
[1756820125484,0.67,200.53,200.43,13.73775558]
[1756820125679,0.67,200.53,200.43,0.14216157]
[1756820125982,0.67,200.53,200.39,0.28432314]
[1756820125983,17.45461799,200.52,200.45,13.73775558]
[1756820126189,26.0,200.5,200.47,13.73775558]
[1756820126499,12.71274598,200.48,200.44,46.2]
[1756820126697,26.0,200.49,200.44,46.2]
[1756820126995,26.0,200.49,200.41,13.59559401]
[1756820126996,0.67,200.48,200.43,46.2]
[1756820127188,26.0,200.45,200.36,0.67]
[1756820127388,26.0,200.45,200.38,13.59559401]
[1756820127389,12.71274598,200.4,200.38,13.59559401]
[1756820127621,26.0,200.45,200.38,13.59559401]
[1756820127835,12.71274598,200.4,200.38,14.26559401]
[1756820127992,12.71274598,200.4,200.27,56.02]
[1756820127993,13.38274598,200.39,200.35,46.18]
[1756820128190,12.71274598,200.36,200.34,46.18]
[1756820128388,12.71274598,200.35,200.34,46.18]
[1756820128611,26.0,200.43,200.35,13.59559401]
[1756820128825,12.71274598,200.4,200.35,26.30833999]
[1756820129033,0.67,200.49,200.39,12.71274598]
[1756820129328,39.38274598,200.48,200.33,0.67]
[1756820129633,26.28432314,200.44,200.29,0.67]
[1756820129805,26.28432314,200.44,200.27,36.02]
[1756820129806,26.0,200.4,200.31,31.84]
[1756820130117,0.95432314,200.39,200.29,46.16]
[1756820130317,0.67,200.38,200.29,46.16]
[1756820130517,0.67,200.38,200.3,13.73775558]
[1756820130711,26.0,200.4,200.3,13.73775558]
[1756820130908,12.71274598,200.31,200.3,13.73775558]
[1756820131117,12.71274598,200.31,200.3,14.26559401]
[1756820131309,26.67,200.4,200.3,14.26559401]
[1756820131509,12.71274598,200.37,200.34,13.59559401]
[1756820131820,24.38418722,200.56,200.37,0.14216157]
[1756820131821,12.71274598,200.39,200.37,0.14216157]
[1756820132020,26.0,200.45,200.38,13.59559401]
[1756820132339,0.67,200.51,200.39,12.85490755]
[1756820132533,0.67,200.59,200.41,14.02207872]
[1756820132820,0.67,200.63,200.5,0.14216157]
[1756820132994,12.71274598,200.51,200.47,0.67]
[1756820133189,12.71274598,200.51,200.39,14.99287838]
[1756820133190,12.71274598,200.5,200.49,13.73775558]
[1756820133394,26.0,200.59,200.49,60.60775558]
[1756820133602,12.71274598,200.51,200.49,0.14216157]
[1756820133804,0.67,200.59,200.49,0.14216157]
[1756820134020,13.38274598,200.62,200.51,13.73775558]
[1756820134220,0.67,200.65,200.54,12.99706912]
[1756820134439,0.67,200.7,200.57,13.87991715]
[1756820134604,0.36682929,200.75,200.61,26.0]
[1756820134806,3.27944096,200.76,200.63,13.73775558]
[1756820135134,12.71274598,200.68,200.65,13.73775558]
[1756820135307,12.71274598,200.76,200.65,13.73775558]
[1756820135633,12.71274598,200.66,200.65,13.73775558]
[1756820136009,12.71274598,200.66,200.59,46.28]
[1756820136203,0.67,200.69,200.6,13.73775558]
[1756820136410,26.0,200.69,200.6,14.40775558]
[1756820136609,12.71274598,200.62,200.6,13.73775558]
[1756820136827,26.67,200.72,200.6,13.73775558]
[1756820137029,0.67,200.72,200.61,0.14216157]
[1756820137202,0.67,200.72,200.61,12.85490755]
[1756820137203,12.71274598,200.66,200.61,12.85490755]
[1756820137403,0.67,200.72,200.63,0.14216157]
[1756820137603,0.67,200.77,200.65,12.71274598]
[1756820137913,2.60819244,200.82,200.68,12.85490755]
[1756820137914,0.67,200.81,200.68,12.85490755]
[1756820138118,0.67,200.8,200.68,0.14216157]
[1756820138321,12.71274598,200.73,200.67,31.71807616]
[1756820138516,0.67,200.8,200.69,0.14216157]
[1756820138720,0.67,200.8,200.7,0.14216157]
[1756820138923,15.32021883,200.9,200.72,13.73775558]
[1756820138924,0.67,200.85,200.72,13.73775558]
[1756820139110,12.71274598,200.73,200.72,13.59559401]
[1756820139316,0.68,200.78,200.7,0.14216157]
[1756820139514,26.0,200.81,200.7,0.14216157]
[1756820139713,0.14216157,200.86,200.7,0.14216157]
[1756820139714,0.68,200.86,200.72,0.14216157]
[1756820139928,4.97883993,200.85,200.75,0.14216157]
[1756820140130,12.71274598,200.79,200.77,0.14216157]
[1756820140344,4.97883993,200.85,200.75,46.34216157]
[1756820140345,0.68,200.84,200.75,46.2]
[1756820140512,26.0,200.84,200.76,13.73775558]
[1756820140942,4.97867622,200.86,200.79,0.14216157]
[1756820141244,4.97561946,200.98,200.8,26.30833999]
[1756820141539,4.97561946,200.98,200.76,0.28432314]
[1756820141540,0.68,200.97,200.84,0.14216157]
[1756820141753,0.68,200.97,200.82,13.59559401]
[1756820141754,12.71274598,200.85,200.83,0.14216157]
[1756820141953,12.71274598,200.84,200.8,46.24]
[1756820142251,26.0,200.87,200.82,0.14216157]
[1756820142412,0.68,200.93,200.84,13.59559401]
[1756820142607,0.68,200.96,200.85,0.14216157]
[1756820142837,26.68,200.96,200.84,13.59559401]
[1756820143009,26.68,200.96,200.85,0.14216157]
[1756820143010,0.68,200.95,200.85,0.14216157]
[1756820143207,12.71274598,200.9,200.85,0.14216157]
[1756820143415,12.71274598,200.87,200.85,0.14216157]
[1756820143642,0.68,200.95,200.85,0.14216157]
[1756820143943,0.68,200.95,200.85,13.73775558]
[1756820144160,4.97487687,201.01,200.87,13.73775558]
[1756820144318,17.41206904,201.01,200.89,13.59559401]
[1756820144634,12.71274598,200.97,200.92,0.14216157]
[1756820144880,4.97487687,201.01,200.92,0.14216157]
[1756820145555,0.68,201.0,200.86,13.59559401]
[1756820145846,26.0,200.95,200.83,0.71]
[1756820146013,26.68,200.94,200.83,14.30559401]
[1756820146222,26.0,200.94,200.84,14.44775558]
[1756820146446,4.97586704,200.97,200.86,0.28432314]
[1756820146760,12.71274598,200.9,200.86,0.42648471]
[1756820147048,0.68,201.05,200.91,0.28432314]
[1756820147395,0.68,201.1,200.99,0.14216157]
[1756820147525,4.97215592,201.12,200.99,0.14216157]
[1756820147526,0.68,201.09,200.99,13.73775558]
[1756820147724,0.68,201.13,201.01,14.02207872]
[1756820147944,0.68,201.16,201.04,0.14216157]
[1756820148124,0.68,201.15,201.04,0.14216157]
[1756820148341,0.68,201.15,201.02,13.59559401]
[1756820148517,0.68,201.15,201.03,0.14216157]
[1756820148716,0.68,201.15,200.98,0.71]
[1756820148717,25.42549196,201.04,200.93,46.46]
[1756820148951,62.25282098,201.17,200.96,12.71274598]
[1756820149118,0.68,201.16,201.0,26.30833999]
[1756820149324,0.68,201.15,201.01,46.68]
[1756820149635,0.68,201.14,201.0,13.59559401]
[1756820149833,4.97116723,201.16,201.04,13.59559401]
[1756820150021,0.68,201.15,201.06,13.73775558]
[1756820150219,0.68,201.14,201.02,13.73775558]
[1756820150420,12.71274598,201.03,201.02,13.59559401]
[1756820150645,12.71274598,201.03,200.98,0.71]
[1756820150850,12.71274598,200.99,200.93,0.71]
[1756820151054,26.0,201.07,200.93,0.71]
[1756820151055,0.68,201.09,200.94,13.59559401]
[1756820151228,12.71274598,200.98,200.96,13.59559401]
[1756820151556,0.68,200.97,200.86,0.71]
[1756820151722,12.71274598,201.04,200.82,13.05584894]
[1756820151723,12.71274598,200.91,200.87,47.41]
[1756820151927,4.97675429,200.94,200.88,0.71]
[1756820152234,5.65377503,201.06,200.93,12.71274598]
[1756820152469,12.71274598,201.01,200.97,0.14216157]
[1756820152676,12.71274598,201.01,200.97,0.85216157]
[1756820152849,0.68,201.09,200.98,13.59559401]
[1756820153050,26.0,201.12,200.99,12.85490755]
[1756820153272,12.71274598,201.01,201.0,13.73775558]
[1756820153556,0.68,201.09,201.01,0.14216157]
[1756820153758,12.71274598,201.02,201.01,0.14216157]
[1756820153955,0.68,201.15,201.03,0.14216157]
[1756820154159,24.95406505,201.37,201.07,26.45050156]
[1756820154160,0.68,201.2,201.07,26.45050156]
[1756820154464,12.71274598,201.13,201.1,0.14216157]
[1756820154660,12.71274598,201.11,201.03,0.28432314]
[1756820154970,26.0,201.15,201.05,0.14216157]
[1756820155171,12.71274598,201.09,201.07,13.73775558]
[1756820155493,0.06,201.01,200.98,0.71]
[1756820155660,0.06,201.01,200.99,61.06559401]
[1756820155661,8.32780448,201.0,200.99,61.06559401]
[1756820155995,0.06,201.01,200.89,12.71274598]
[1756820156156,0.06,201.01,200.95,46.76]
[1756820156356,0.06,201.01,200.96,8.32780448]
[1756820156656,0.06,201.01,200.98,13.59559401]
[1756820156856,0.68,201.21,200.98,28.55559401]
[1756820157061,8.32780448,201.14,201.11,0.14216157]
[1756820157264,4.97003586,201.21,201.13,0.14216157]
[1756820157465,8.32780448,201.16,201.13,0.14216157]
[1756820157767,0.68,201.25,201.13,22.06556006]
[1756820157969,8.32780448,201.24,201.13,13.73775558]
[1756820158171,9.00780448,201.24,201.13,18.70959633]
[1756820158375,4.96896638,201.25,201.16,0.14216157]
[1756820158576,8.32780448,201.17,201.12,13.59559401]
[1756820158771,8.32780448,201.18,201.13,0.85216157]
[1756820159063,26.68,201.21,201.13,0.14216157]
[1756820159268,0.68,201.28,201.15,0.14216157]
[1756820159463,0.68,201.28,201.18,0.14216157]
[1756820159688,0.68,201.28,201.16,13.59559401]
[1756820159900,4.97007889,201.21,201.16,13.59559401]
[1756820160111,12.41984633,201.3,201.16,0.71]
[1756820160314,0.68,201.32,201.17,0.14216157]
[1756820160527,17.38266699,201.35,201.21,8.32780448]
[1756820160678,5.64647628,201.35,201.25,0.14216157]
[1756820160878,0.68,201.4,201.28,8.32780448]
[1756820161078,4.96351814,201.47,201.33,8.32780448]
[1756820161292,4.96302546,201.49,201.37,8.32780448]
[1756820161494,8.32780448,201.39,201.36,0.14216157]
[1756820161705,0.68,201.46,201.36,0.14216157]
[1756820161892,8.32780448,201.48,201.36,13.59559401]
[1756820162094,4.961548,201.55,201.4,13.59559401]
[1756820162295,4.961548,201.55,201.39,8.46996605]
[1756820162296,5.64132389,201.56,201.45,13.73775558]
[1756820162482,2.59893452,201.6,201.48,13.59559401]
[1756820162823,0.68,201.63,201.5,13.59559401]
[1756820163108,8.32780448,201.51,201.47,0.14216157]
[1756820163314,0.68,201.62,201.49,21.92339849]
[1756820163599,0.68,201.62,201.5,0.14216157]
[1756820163803,0.68,201.62,201.49,13.59559401]
[1756820164106,4.95980087,201.63,201.51,13.59559401]
[1756820164294,26.68,201.61,201.49,13.73775558]
[1756820164510,8.32780448,201.51,201.46,47.58216157]
[1756820164702,0.68,201.63,201.51,13.73775558]
[1756820164918,0.68,201.62,201.51,13.59559401]
[1756820165096,8.32780448,201.52,201.48,0.71]
[1756820165419,8.32780448,201.55,201.5,13.59559401]
[1756820165625,34.32780448,201.6,201.45,0.14216157]
[1756820165911,0.68,201.67,201.5,13.59559401]
[1756820166121,0.68,201.67,201.55,8.32780448]
[1756820166292,8.32780448,201.58,201.47,26.14216157]
[1756820166611,8.32780448,201.58,201.48,62.17775558]
[1756820166612,8.32780448,201.52,201.48,62.17775558]
[1756820166783,8.32780448,201.6,201.5,0.14216157]
[1756820166984,8.32780448,201.52,201.36,8.32780448]
[1756820167183,0.68,201.55,201.43,0.71]
[1756820167389,0.68,201.55,201.32,12.41775841]
[1756820167390,8.32780448,201.44,201.37,9.03780448]
[1756820167610,0.68,201.43,201.37,8.32780448]
[1756820167822,26.0,201.45,201.23,0.71]
[1756820167823,42.65560896,201.38,201.23,0.71]
[1756820168115,26.0,201.31,201.13,0.71]
[1756820168284,26.0,201.24,201.19,8.32780448]
[1756820168612,0.96432314,201.3,201.11,0.68]
[1756820168802,4.96652021,201.35,201.2,0.71]
[1756820169007,0.68,201.37,201.2,0.71]
[1756820169179,0.7,201.41,201.27,8.32780448]
[1756820169384,0.7,201.44,201.28,0.69]
[1756820169582,16.61488506,201.3,201.25,0.28432314]
[1756820169904,16.61488506,201.26,201.22,49.4]
[1756820170082,20.0,201.5,201.23,0.69]
[1756820170279,0.7,201.5,201.33,16.61488506]
[1756820170492,0.7,201.49,201.32,0.14216157]
[1756820170695,12.40232519,201.58,201.34,13.59559401]
[1756820170905,16.61488506,201.51,201.45,16.61488506]
[1756820171094,16.61488506,201.46,201.38,0.14216157]
[1756820171286,0.7,201.52,201.37,0.69]
[1756820171484,0.7,201.52,201.37,0.14216157]
[1756820171694,0.7,201.59,201.43,16.61488506]
[1756820171911,0.7,201.59,201.46,13.73775558]
[1756820172109,48.87584894,201.9,201.46,13.73775558]
[1756820172110,0.7,201.65,201.54,16.61488506]
[1756820172285,16.61488506,201.56,201.51,13.59559401]
[1756820172488,0.7,201.55,201.45,30.35264064]
[1756820172707,16.61488506,201.47,201.43,0.83216157]
[1756820173012,16.61488506,201.44,201.3,35.82]
[1756820173216,16.61488506,201.41,201.35,16.61488506]
[1756820173392,0.7,201.6,201.4,16.61488506]
[1756820173583,0.7,201.6,201.48,30.21047907]
[1756820173891,0.2,201.73,201.55,16.61488506]
[1756820173892,0.7,201.66,201.55,16.61488506]
[1756820174193,0.2,201.73,201.49,0.69]
[1756820174194,16.61488506,201.56,201.49,13.59559401]
[1756820174406,16.61488506,201.52,201.49,13.59559401]
[1756820174613,0.7,201.56,201.43,0.83216157]
[1756820174912,0.7,201.67,201.56,13.59559401]
[1756820175093,0.2,201.73,201.59,30.21047907]
[1756820175094,0.7,201.72,201.59,30.21047907]
[1756820175299,0.7,201.72,201.51,26.0]
[1756820175300,16.61488506,201.61,201.51,26.0]
[1756820175503,16.61488506,201.57,201.53,13.59559401]
[1756820175700,0.7,201.65,201.54,0.69]
[1756820175895,16.61488506,201.57,201.51,13.73775558]
[1756820176210,0.7,201.65,201.52,13.73775558]
[1756820176393,0.7,201.64,201.51,13.59559401]
[1756820176804,26.0,201.63,201.51,13.59559401]
[1756820177329,16.61488506,201.52,201.41,0.69]
[1756820177558,16.61488506,201.42,201.31,50.95]
[1756820177719,16.61488506,201.38,201.32,0.69]
[1756820178038,0.14216157,201.59,201.33,0.69]
[1756820178223,0.7,201.52,201.33,0.69]
[1756820178536,0.7,201.58,201.36,13.73775558]
[1756820178757,0.7,201.58,201.43,0.14216157]
[1756820178943,26.7,201.58,201.47,30.21047907]
[1756820179242,16.61488506,201.56,201.48,0.69]
[1756820179452,12.59297055,201.73,201.53,30.21047907]
[1756820179633,12.59297055,201.73,201.57,30.21047907]
[1756820179634,0.7,201.69,201.57,30.21047907]
[1756820179958,16.61488506,201.58,201.49,0.69]
[1756820180248,0.7,201.61,201.47,0.14216157]
[1756820180422,0.7,201.61,201.51,13.59559401]
[1756820180617,0.7,201.68,201.56,16.61488506]
[1756820180919,16.61488506,201.61,201.55,30.21047907]
[1756820181130,0.7,201.71,201.59,30.21047907]
[1756820181326,16.61488506,201.6,201.56,0.69]
[1756820181526,16.61488506,201.57,201.51,13.59559401]
[1756820181836,26.0,201.64,201.5,14.28559401]
[1756820182139,16.61488506,201.6,201.52,0.14216157]
[1756820182332,0.7,201.67,201.49,86.16]
[1756820182333,16.61488506,201.53,201.49,86.16]
[1756820182544,0.7,201.52,201.34,35.8]
[1756820182870,0.7,201.51,201.35,0.69]
[1756820183164,0.28432314,201.57,201.35,0.69]
[1756820183348,0.7,201.54,201.42,16.61488506]
[1756820183649,0.7,201.59,201.47,16.61488506]
[1756820183950,16.61488506,201.55,201.5,4.96277915]
[1756820184124,0.7,201.62,201.5,22.26766421]
[1756820184460,16.61488506,201.52,201.48,4.96327178]
[1756820184626,38.39004491,201.7,201.46,4.96364134]
[1756820184627,0.7,201.58,201.46,4.96364134]
[1756820184829,0.7,201.63,201.5,16.61488506]
[1756820185147,16.61488506,201.54,201.47,0.14216157]
[1756820185346,26.0,201.59,201.5,13.59559401]
[1756820185645,16.61488506,201.58,201.52,13.59559401]
[1756820186043,0.7,201.72,201.57,30.21047907]
[1756820186333,16.61488506,201.58,201.55,50.46]
[1756820186541,26.0,201.67,201.52,13.59559401]
[1756820186542,0.7,201.65,201.52,13.59559401]
[1756820186732,16.61488506,201.64,201.57,13.59559401]
[1756820186938,5.15712408,201.73,201.57,13.59559401]
[1756820186939,16.61488506,201.63,201.57,30.21047907]
[1756820187263,16.61488506,201.63,201.58,13.59559401]
[1756820187426,16.61488506,201.63,201.59,0.69]
[1756820187622,0.2,201.73,201.62,16.61488506]
[1756820187929,0.2,201.73,201.64,5.10149503]
[1756820187930,16.61488506,201.7,201.64,5.10149503]
[1756820188138,16.61488506,201.7,201.63,0.69]
[1756820188139,16.61488506,201.67,201.63,18.55499259]
[1756820188347,0.2,201.73,201.63,18.55499259]
[1756820188749,16.61488506,201.68,201.64,50.46]
[1756820188952,0.2,201.73,201.65,0.69]
[1756820189138,16.61488506,201.71,201.66,13.59559401]
[1756820189323,16.61488506,201.68,201.64,50.46]
[1756820189529,16.61488506,201.68,201.65,50.38]
[1756820189848,0.2,201.73,201.62,30.35264064]
[1756820190057,16.61488506,201.65,201.62,4.95969672]
[1756820190361,0.7,201.71,201.59,0.69]
[1756820190655,16.61488506,201.6,201.55,13.59559401]
[1756820190838,16.61488506,201.58,201.55,13.59559401]
[1756820191040,16.61488506,201.56,201.54,35.78]
[1756820191276,16.61488506,201.55,201.48,0.69]
[1756820191438,8.28902374,201.53,201.48,50.99]
[1756820191756,8.28902374,201.6,201.46,50.26]
[1756820191974,8.28902374,201.47,201.41,0.69]
[1756820192259,8.28902374,201.47,201.37,12.41495754]
[1756820192260,8.28902374,201.42,201.37,46.76]
[1756820192447,8.28902374,201.48,201.29,4.96795667]
[1756820192448,26.0,201.45,201.33,46.76]
[1756820192667,8.28902374,201.48,201.34,0.69]
[1756820192868,0.7,201.56,201.42,8.28902374]
[1756820193050,8.28902374,201.45,201.43,50.26]
[1756820193252,26.0,201.54,201.29,42.22763175]
[1756820193253,8.28902374,201.44,201.29,42.22763175]
[1756820193466,26.0,201.49,201.33,0.69]
[1756820193679,16.59853671,201.47,201.35,0.14216157]
[1756820193871,26.0,201.48,201.34,14.28559401]
[1756820194071,16.59853671,201.38,201.34,0.69]
[1756820194278,0.7,201.47,201.36,16.59853671]
[1756820194582,0.7,201.47,201.27,60.62118385]
[1756820194583,16.59853671,201.37,201.33,18.56255842]
[1756820194779,16.59853671,201.37,201.36,50.32]
[1756820195075,16.59853671,201.39,201.36,50.32]
[1756820195280,16.59853671,201.4,201.36,50.32]
[1756820195462,0.7,201.52,201.4,13.59559401]
[1756820195664,5.66105571,201.57,201.43,13.59559401]
[1756820195863,0.7,201.57,201.45,13.59559401]
[1756820196065,52.37853671,201.74,201.52,16.59853671]
[1756820196066,0.7,201.64,201.52,16.59853671]
[1756820196294,24.9578294,201.71,201.51,13.59559401]
[1756820196488,0.7,201.63,201.51,25.06]
[1756820196659,17.35186043,201.71,201.55,13.59559401]
[1756820196660,4.9578294,201.71,201.55,13.59559401]
[1756820196982,4.9578294,201.71,201.52,13.59559401]
[1756820196983,16.59853671,201.58,201.52,16.59853671]
[1756820197183,16.59853671,201.54,201.51,50.97]
[1756820197365,0.7,201.63,201.51,50.28]
[1756820197576,16.59853671,201.52,201.51,50.28]
[1756820197775,16.59853671,201.52,201.44,0.83216157]
[1756820198001,16.59853671,201.47,201.45,13.59559401]
[1756820198199,16.59853671,201.46,201.4,13.59559401]
[1756820198399,16.59853671,201.41,201.38,0.69]
[1756820198576,26.0,201.52,201.4,13.59559401]
[1756820198770,26.0,201.52,201.39,0.69]
[1756820198771,16.59853671,201.43,201.39,0.69]
[1756820198995,16.59853671,201.4,201.35,13.59559401]
[1756820199306,16.59853671,201.46,201.4,13.59559401]
[1756820199603,16.59853671,201.46,201.39,0.14216157]
[1756820199604,5.41196325,201.74,201.42,13.73775558]
[1756820199811,0.68,201.6,201.48,16.59853671]
[1756820199969,0.68,201.6,201.49,50.32]
[1756820200173,16.59853671,201.5,201.44,0.14216157]
[1756820200376,26.0,201.59,201.37,26.0]
[1756820200377,26.0,201.57,201.45,50.3]
[1756820200579,26.0,201.57,201.47,0.42648471]
[1756820200781,16.59853671,201.56,201.51,13.59559401]
[1756820201171,0.68,201.68,201.53,13.73775558]
[1756820201499,16.59853671,201.61,201.54,0.68]
[1756820201676,16.59853671,201.55,201.5,0.14216157]
[1756820202007,16.59853671,201.54,201.5,13.59559401]
[1756820202207,16.59853671,201.51,201.47,4.96351814]
[1756820202503,16.59853671,201.57,201.51,0.14216157]
[1756820202912,0.68,201.67,201.52,14.27559401]
[1756820203093,0.68,201.67,201.55,16.59853671]
[1756820203283,16.59853671,201.62,201.57,13.59559401]
[1756820203485,16.59853671,201.66,201.6,16.59853671]
[1756820203695,16.59853671,201.64,201.6,50.22]
[1756820203888,16.59853671,201.64,201.58,0.68]
[1756820203889,0.68,201.68,201.58,50.2]
[1756820204093,16.59853671,201.62,201.59,4.96056352]
[1756820204311,16.59853671,201.62,201.58,55.16080634]
[1756820204488,16.59853671,201.69,201.62,0.14216157]
[1756820204687,0.06,201.72,201.62,0.14216157]
[1756820204688,0.06,201.72,201.65,13.59559401]
[1756820204889,0.06,201.72,201.66,13.59559401]
[1756820205116,0.06,201.72,201.71,13.73775558]
[1756820205289,16.65853671,201.72,201.66,0.68]
[1756820205489,16.65853671,201.72,201.7,13.59559401]
[1756820205490,0.06,201.72,201.7,13.59559401]
[1756820205700,0.06,201.72,201.7,0.68]
[1756820205884,0.06,201.72,201.66,0.68]
[1756820206083,0.06,201.72,201.54,20.0]
[1756820206318,0.06,201.72,201.64,13.73775558]
[1756820206485,0.68,201.9,201.72,13.59559401]
[1756820206814,4.9532032,201.89,201.76,16.59853671]
[1756820207018,0.68,201.88,201.77,50.34]
[1756820207224,16.59853671,201.81,201.74,0.14216157]
[1756820207428,0.68,201.88,201.78,50.34]
[1756820207623,17.33618403,201.89,201.76,50.32]
[1756820207840,16.59853671,201.77,201.71,13.59559401]
[1756820208013,16.59853671,201.74,201.73,50.34]
[1756820208212,16.59853671,201.74,201.69,13.59559401]
[1756820208213,16.59853671,201.74,201.69,50.34]
[1756820208418,0.68,201.82,201.68,16.59853671]
[1756820208707,0.68,201.82,201.71,13.59559401]
[1756820208708,43.34240966,201.82,201.71,13.59559401]
[1756820208914,43.34240966,201.82,201.66,0.28432314]
[1756820208915,16.59853671,201.73,201.67,16.74069828]
[1756820209133,0.68,201.81,201.68,16.59853671]
[1756820209310,0.68,201.8,201.67,13.59559401]